Cogmind - Beta 13 *** ADVENTURER MODE // 2024.07.04 @ 19:35:48 Player: AnotherZach Result: Self-destructed Performance ------------- Evolutions (4) 2000 Regions Visited (10) 2000 Robots Destroyed (117) 585 Value Destroyed (3575) 3575 Prototype IDs (28) 560 Alien Tech Used (0) 0 Bonus (2159) 2159 TOTAL SCORE: 10879 Bonus ------- High Alert Combat Kills 224 Follower Combat Kills 956 Entered Garrisons 200 Used RIF Installer 500 Aligned with FarCom 300 Friendly Fire -21 Cogmind --------- Core Integrity 603/850 Matter 297/300 Energy 52/100 System Corruption 1% Temperature Cool (0) Movement Core (50) Location -6/Factory Parts ------- > --- POWER (1) -------- (None) > --- PROPULSION (4) --- (None) > --- UTILITY (7) ------ Visual Processing Unit Hacking Suite Relay Coupler [NC] (14) Relay Coupler [Grunt] (34) Relay Coupler [Hunter] (19) > --- WEAPON (3) ------- (None) > --- INVENTORY (5) ---- Hacking Suite System Shield Relay Coupler [Sentry] (28) Skeleton Box Trap Reconfigurator Peak State ------------ > --- POWER ------------ Improved Ion Engine > --- PROPULSION ------- Flying Fortress v7 > --- UTILITY ---------- Improved Cooling System Large Storage Unit Visual Processing Unit Hacking Suite Hacking Suite Trap Reconfigurator > --- WEAPON ----------- Arc Projector Great Axe > --- INVENTORY -------- Improved Carbon-fiber Leg VTOL Module Improved VTOL Module Advanced Weight Redist. System Signal Interpreter Hardlight Generator Hacking Suite Hacking Suite System Shield Skeleton Box Sensor Drone Bay Arc Projector Remote Datajack Remote Datajack [Rating: 69] Favorites ----------- Power Ion Engine Engine Ion Engine Power Core Light Nuclear Core Propulsion Carbon-fiber Leg Treads Light Treads Leg Carbon-fiber Leg Wheel Wheel Flight Unit Flying Fortress v7 Utility High-capacity Storage Unit Device Structural Scanner Storage High-capacity Storage Unit Processor Visual Processing Unit Hackware Hacking Suite Weapon Mini Grenade Launcher Energy Gun Improved Medium Laser Energy Cannon Advanced Beam Cannon Ballistic Gun Improved Assault Rifle Ballistic Cannon Light Cannon Launcher Mini Grenade Launcher Special Weapon Remote Datajack Impact Weapon Mace Slashing Weapon Great Axe Piercing Weapon Spear Build | -11 -10 -10 -9 -9 -9 -8 -8 -7 -7 -6 ------- Run | Yrd Mat Min Mat Min Exi Min Mat Fac Gar Fac Slots Evolved 8 | . . . 2 . . . 2 2 . 2 Power . | . . . . . . . . . . . Propulsion 2 | . . . 1 . . . 1 . . . Utility 5 | . . . 1 . . . 1 2 . 1 Weapon 1 | . . . . . . . . . . 1 Parts Attached 130 | 8 8 9 23 7 1 2 12 15 36 9 Power 15 | 1 1 1 4 1 . . 3 . 3 1 Engine 11 | 1 1 1 4 1 . . 2 . 1 . Core 4 | . . . . . . . 1 . 2 1 Reactor . | . . . . . . . . . . . Propulsion 26 | 3 3 2 5 1 . . 1 . 11 . Treads 6 | 1 3 2 . . . . . . . . Leg 16 | . . . 5 1 . . . . 10 . Wheel 2 | 2 . . . . . . . . . . Hover . | . . . . . . . . . . . Flight 2 | . . . . . . . 1 . 1 . Utility 38 | 2 2 4 7 1 . 1 3 6 8 4 Device 22 | 1 . 3 6 1 . 1 1 4 4 1 Storage 5 | 1 2 . . . . . 1 . 1 . Processor 3 | . . 1 . . . . . 1 1 . Hackware 8 | . . . 1 . . . 1 1 2 3 Protection . | . . . . . . . . . . . Artifact . | . . . . . . . . . . . Weapon 51 | 2 2 2 7 4 1 1 5 9 14 4 Energy Gun 16 | . . . 5 1 1 . 2 4 3 . Energy Cannon 5 | . 1 . . 1 . . 1 . . 2 Ballistic Gun 4 | 2 . . 1 . . 1 . . . . Ballistic Cannon 3 | . . 2 1 . . . . . . . Launcher 7 | . 1 . . 2 . . 2 . 2 . Special Weapon 9 | . . . . . . . . 3 4 2 Impact Weapon 1 | . . . . . . . . . 1 . Slashing Weapon 5 | . . . . . . . . 1 4 . Piercing Weapon 1 | . . . . . . . . 1 . . Special Melee Weapon . | . . . . . . . . . . . Unidentified Prototypes 4 | . 1 1 2 . . . . . . . Parts Lost 29 | . . 4 2 4 . . 3 1 5 10 Power 8 | . . 1 1 1 . . 2 . 1 2 Propulsion 9 | . . 2 . 2 . . . . 1 4 Utility 6 | . . . 1 . . . 1 1 1 2 Weapon 6 | . . 1 . 1 . . . . 2 2 Highest Loss Streak 8 | . . 3 1 4 . . 1 1 2 8 To Critical Strikes 1 | . . . . . . . . . . 1 Average Slot Usage (%) 93 | . 100 99 97 92 88 88 71 75 94 87 Engine 10 | . 14 14 11 10 11 11 3 7 3 3 Treads 10 | . 26 27 4 . . . . . . . Leg 13 | . . . 26 26 22 22 . . 24 18 Device 10 | . 2 11 13 11 11 11 18 14 9 11 Storage 12 | . 25 16 11 11 11 11 9 7 7 5 Processor 2 | . . . . . . . . 7 12 7 Hackware 7 | . . . 8 11 11 11 9 15 15 19 Energy Gun 5 | . . . 13 16 11 11 3 8 3 1 Energy Cannon 2 | . 13 . . 5 . . 4 1 . 4 Ballistic Gun 1 | . 1 . . . . 11 7 . . . Ballistic Cannon 5 | . . 16 8 . . . . . . . Launcher 5 | . 13 10 . . 11 . 2 . 3 . Naked Turns . | . . . . . . . . . . . Heaviest Build 70 | 14 54 54 67 55 52 54 36 49 62 70 Greatest Support 69 | 26 40 40 45 45 30 30 50 50 69 69 Greatest Overweight (x) 20 | . 1 1 2 1 1 1 . . 2 20 Average Overweight (x) . | . . 1 1 1 1 1 . . . . Largest Inventory Capacity 20 | 8 20 20 20 20 20 20 20 15 20 20 Average Capacity 18 | 7 12 20 20 20 20 20 15 15 17 19 Most Carried 20 | 6 20 20 20 20 20 20 20 15 20 20 Average Carried 17 | 3 10 19 19 18 18 20 14 14 15 18 Final Capacity 20 | 8 20 20 20 20 20 20 15 15 20 5 Final Carried 20 | 6 20 19 20 19 20 20 15 15 20 5 Class Distribution -------------------- 45% | Hacker-Mutant 39% | Mutant 7% | Scavenger-Mutant 6% | Bothacker-Mutant Dominant Class ---------------- Mutant | -10/Materials Mutant | -10/Mines Hacker-Mutant | -9/Materials Hacker-Mutant | -9/Mines Hacker-Mutant | -9/Exiles Hacker-Mutant | -8/Mines Hacker-Mutant | -8/Materials Hacker-Mutant | -7/Factory Scavenger-Mutant | -7/Garrison Bothacker-Mutant | -6/Factory Resources | -11 -10 -10 -9 -9 -9 -8 -8 -7 -7 -6 ----------- Run | Yrd Mat Min Mat Min Exi Min Mat Fac Gar Fac Matter Collected 2456 | 296 230 177 637 70 . 50 266 190 435 105 Remotely 223 | 175 48 . . . . . . . . . Salvage Created 3695 | 78 266 84 1492 250 . 50 351 268 603 253 Parts 236 | 3 32 2 91 19 . 8 24 13 34 10 Haulers Intercepted 6 | . 2 . 4 . . . . . . . Recyclers Shooed 5 | . . . 5 . . . . . . . Parts Field Recycled . | . . . . . . . . . . . Retrieved Matter . | . . . . . . . . . . . Parts Self-Destructed . | . . . . . . . . . . . Prevented . | . . . . . . . . . . . Kills | -11 -10 -10 -9 -9 -9 -8 -8 -7 -7 -6 ------- Run | Yrd Mat Min Mat Min Exi Min Mat Fac Gar Fac Combat Hostiles Destroyed 104 | . 11 18 32 7 . 4 9 4 15 4 Melee 8 | . . . . . . . . . 8 . Guns 37 | . . . 23 3 . 4 3 3 1 . Cannons 25 | . 3 5 8 2 . . 3 . . 4 AOE 32 | . 7 13 . 2 . . 3 1 6 . Classes Destroyed 15 | 1 6 2 2 . . . . 1 2 1 Worker 8 | . 1 1 2 . . . . 3 . 1 Builder 3 | . 2 . . 1 . . . . . . Tunneler 2 | . . 1 . . . . 1 . . . Hauler 6 | . 2 . 4 . . . . . . . Recycler 4 | 1 . . 2 . . . . . . 1 Operator 2 | . . . 1 . . . 1 . . . Watcher 6 | . 2 . 3 . . . 1 . . . Swarmer 40 | . 9 . 10 3 . 4 4 . 7 3 Grunt 33 | . 2 . 18 2 . . 2 3 6 . Duelist 1 | . . . . . . . . . 1 . Sentry 9 | . . . 4 2 . . 3 . . . Specialist 1 | . . . . . . . . . 1 . Hunter 1 | . . . . . . . . 1 . . Programmer 1 | . . . . . . . . . . 1 Assembled 18 | . . 18 . . . . . . . . Best Kill Streak 13 | 1 7 13 10 5 . 4 4 3 4 3 Combat Bots Only 13 | . 6 13 5 5 . 4 4 3 4 3 Max Kills in Single Turn 7 | 1 3 7 2 2 . 2 2 2 3 2 Gunslinging 1 | . . . 1 . . 1 . . . . Exploded 7 | . 3 7 . 1 . . 2 1 3 . Melee 1 | . . . . . . . . . 1 . Uniques/NPCs Destroyed . | . . . . . . . . . . . Combat | -11 -10 -10 -9 -9 -9 -8 -8 -7 -7 -6 -------- Run | Yrd Mat Min Mat Min Exi Min Mat Fac Gar Fac Hostile Shots Fired 721 | . 27 76 160 59 . 12 51 105 151 80 Missed 247 | . 10 21 54 13 . 4 20 50 51 24 Damage Taken 5332 | . 149 690 883 471 . 45 527 375 1337 855 Core 1100 | . 15 146 216 62 . 19 45 57 293 247 Absorbed by Shields 11 | . . . . . . . . . 11 . Ignored by Resistances 1570 | . 49 196 276 135 . 16 148 118 391 241 Regen/Repaired (Parts) 119 | . . . 119 . . . . . . . Core Remaining (%) 60 | 100 . 35 . . . 25 91 . 50 . Volleys Fired 295 | 4 35 24 85 17 . 6 31 41 36 16 Largest 2 | 2 2 2 2 2 . 2 2 2 2 2 Hottest 170 | 40 98 98 126 124 . 79 91 110 110 170 Shots Fired 494 | 8 43 37 169 33 . 12 61 65 47 19 Gun 293 | 8 . . 119 25 . 12 38 59 32 . Cannon 143 | . 35 25 50 5 . . 18 . . 10 Launcher 33 | . 8 12 . 3 . . 5 . 5 . Special 25 | . . . . . . . . 6 10 9 Kinetic 111 | 8 . 16 50 . . 6 31 . . . Thermal 234 | . 35 9 119 30 . 6 25 . . 10 Explosive 33 | . 8 12 . 3 . . 5 . 5 . Electromagnetic 91 | . . . . . . . . 59 32 . Robot Hit Streak 26 | 5 7 8 26 17 . 12 13 22 12 7 Robot Miss Streak 2 | 1 1 2 2 2 . 2 2 1 2 2 Penetration Max . | . . . . . . . . . . . Secondary Targets 7 | . . . 5 . . 2 . . . . Max Gunslinging Chain 1 | . . . 1 . . 1 . . . . Shots Hit Robots 395 | 7 23 18 133 25 . 7 43 55 68 16 Core Hits 188 | 2 17 36 47 9 . 4 18 23 26 6 Critical Kills 1 | . 1 . . . . . . . . . Critical Parts Destroyed . | . . . . . . . . . . . Critical Strikes 17 | . 1 . 9 . . . . . 7 . Burn 9 | . . . 9 . . . . . . . Meltdown 1 | . 1 . . . . . . . . . Sever 7 | . . . . . . . . . 7 . Melee Attacks 56 | . . . . . . . . 2 52 2 Impact 2 | . . . . . . . . . . 2 Slashing 52 | . . . . . . . . . 52 . Piercing 2 | . . . . . . . . 2 . . Sneak Attacks . | . . . . . . . . . . . Combat Hostiles . | . . . . . . . . . . . Follow-up Attacks . | . . . . . . . . . . . Damage Inflicted 9952 | 68 1131 1122 2483 597 . 108 913 951 1947 632 Guns 3600 | 68 . . 1772 337 . 108 444 623 248 . Cannons 2133 | . 488 291 711 103 . . 267 . . 273 Explosions 2901 | . 643 831 . 157 . . 202 310 438 320 Melee 1295 | . . . . . . . . . 1261 34 Ramming 23 | . . . . . . . . 18 . 5 Kinetic 1311 | 68 . 168 711 . . 40 324 . . . Thermal 3968 | . 488 123 1772 440 . 68 387 310 107 273 Explosive 2484 | . 643 831 . 157 . . 202 . 331 320 Electromagnetic 871 | . . . . . . . . 623 248 . Impact 34 | . . . . . . . . . . 34 Slashing 1261 | . . . . . . . . . 1261 . Piercing . | . . . . . . . . . . . Highest Corruption 1 | . . . . . . . . . . 1 Average Corruption 1 | . . . . . . . . . . 1 Corruption Purged . | . . . . . . . . . . . Corruption Blocked . | . . . . . . . . . . . Overload Shots . | . . . . . . . . . . . Overflow Damage 139 | . 25 10 11 21 . . 8 . 6 58 Projectiles 49 | . 1 . 11 . . . 3 . . 34 Explosions 90 | . 24 10 . 21 . . 5 . 6 24 Melee . | . . . . . . . . . . . Knockbacks 5 | . . 2 3 . . . . . . . Impact . | . . . . . . . . . . . Kinetic 5 | . . 2 3 . . . . . . . Secondary . | . . . . . . . . . . . Self-Inflicted Damage 434 | . 50 81 . . . . 74 40 96 93 Shots 13 | . 2 3 . . . . 2 1 4 1 Rammed 2 | . . . . . . . . 1 . 1 Targets Rammed 2 | . . . . . . . . 1 . 1 Kicked . | . . . . . . . . . . . Crushed . | . . . . . . . . . . . Highest Temperature 292 | . 252 200 270 150 . . 75 292 50 156 Average Temperature 61 | . 68 51 57 64 . . 24 88 22 80 Received Heat Transfer 1659 | . 6 . 426 207 . . 183 102 582 153 Effects 2 | . 1 . 1 . . . . . . . Energy Bleed 2 | . 1 . 1 . . . . . . . Siege Activations . | . . . . . . . . . . . Robots Corrupted . | . . . . . . . . . . . Combat Hostiles . | . . . . . . . . . . . Parts Fried 1 | . . . . . . . . 1 . . Impact Corruptions . | . . . . . . . . . . . Robots Melted 2 | . 1 . 1 . . . . . . . Combat Hostiles 2 | . 1 . 1 . . . . . . . Parts Melted 20 | . 1 . 12 5 . . 1 . . 1 Heat Transferred 8059 | . 888 222 4440 925 . 148 740 300 100 296 Parts Sabotaged . | . . . . . . . . . . . Parts Stolen . | . . . . . . . . . . . Parts Stripped . | . . . . . . . . . . . Power Chain Reactions 4 | . . . . . . . . 3 1 . Alert | -11 -10 -10 -9 -9 -9 -8 -8 -7 -7 -6 ------- Run | Yrd Mat Min Mat Min Exi Min Mat Fac Gar Fac Peak Influence 1169 | 5 330 21 332 296 . 99 253 262 1169 603 Initial 531 | . 2 9 . 106 . . . 20 89 531 Average 196 | 1 130 5 168 200 . 72 113 65 629 531 Maximum Alert Level 4 | . 1 . 1 1 . . 1 1 4 2 Low Security (%) 68 | 100 80 100 60 52 . 100 90 98 9 . Level 1 15 | . 19 . 39 47 . . 9 1 16 . Level 2 10 | . . . . . . . . . 38 100 Level 3 4 | . . . . . . . . . 28 . Level 4 1 | . . . . . . . . . 7 . Level 5 . | . . . . . . . . . . . High Security . | . . . . . . . . . . . Max Security . | . . . . . . . . . . . Squads Dispatched 19 | . 1 . 8 . . . 3 6 . 1 Investigation 12 | . 1 . 5 . . . 3 3 . . Extermination 1 | . . . . . . . . . . 1 Reinforcement 5 | . . . 3 . . . . 2 . . Assault . | . . . . . . . . . . . Garrison 1 | . . . . . . . . 1 . . Intercept . | . . . . . . . . . . . Searches Triggered . | . . . . . . . . . . . Construction Impeded 1 | . . . . . . . . 1 . . Haulers Reinforced 1 | . . . . . . . . 1 . . Active Scanning Responses . | . . . . . . . . . . . Cargo Convoy Interrupts . | . . . . . . . . . . . Stealth | -11 -10 -10 -9 -9 -9 -8 -8 -7 -7 -6 --------- Run | Yrd Mat Min Mat Min Exi Min Mat Fac Gar Fac Distress Signals 7 | . 1 . 2 . . . 2 2 . . Communications Jammed . | . . . . . . . . . . . Distress Signals . | . . . . . . . . . . . Times Spotted 175 | . 17 19 39 8 . 4 18 19 40 11 Peak Tracking Total 17 | . 7 17 6 5 . 4 5 5 6 6 Tactical Retreats 11 | . . . 1 1 . . 2 . 7 . Traps | -11 -10 -10 -9 -9 -9 -8 -8 -7 -7 -6 ------- Run | Yrd Mat Min Mat Min Exi Min Mat Fac Gar Fac Traps Triggered 4 | . 1 . 1 . . . . . 2 . Indirectly . | . . . . . . . . . . . Trap Hack Attempts . | . . . . . . . . . . . Triggered . | . . . . . . . . . . . Disarmed . | . . . . . . . . . . . Reprogrammed . | . . . . . . . . . . . Reused 4 | . . 2 . . . . . . 2 . Traps Reconfigurated 4 | . . . . . . . . . 4 . Traps Extracted . | . . . . . . . . . . . Installed 2 | . . 2 . . . . . . . . Triggered 4 | . . 2 . . . . . . 2 . Most Traps Carried 3 | . . 3 2 . . . . . . . Machines | -11 -10 -10 -9 -9 -9 -8 -8 -7 -7 -6 ---------- Run | Yrd Mat Min Mat Min Exi Min Mat Fac Gar Fac Machines Disabled 10 | . . . 1 . . 1 1 1 4 2 Max in Single Turn 1 | . . . 1 . . 1 1 . 1 1 Garrison Relay 4 | . . . . . . . . . 4 . Machines Repaired . | . . . . . . . . . . . Machines Dismantled . | . . . . . . . . . . . Machines Sabotaged . | . . . . . . . . . . . Overloaded Fab Kills . | . . . . . . . . . . . Hacking | -11 -10 -10 -9 -9 -9 -8 -8 -7 -7 -6 --------- Run | Yrd Mat Min Mat Min Exi Min Mat Fac Gar Fac Machines Accessed 28 | . 5 1 8 . 5 . 5 4 . . Terminals 14 | . 5 . 5 . . . 3 1 . . Fabricators . | . . . . . . . . . . . Repair Stations 1 | . . . 1 . . . . . . . Recycling Units 4 | . . . 1 . . . 1 2 . . Scanalyzers 2 | . . . 1 . . . 1 . . . Garrison Access 1 | . . . . . . . . 1 . . Total Hacks 140 | . 15 1 46 . 50 . 15 13 . . Successful 115 | . 7 1 38 . 50 . 10 9 . . Failed 24 | . 7 . 8 . . . 5 4 . . Catastrophic 2 | . . . 1 . . . 1 . . . Database Lockouts 1 | . 1 . . . . . . . . . Manual 58 | . 13 1 23 . 1 . 11 9 . . Terminals 53 | . 15 . 24 . . . 11 3 . . Fabricators . | . . . . . . . . . . . Repair Stations 6 | . . . 6 . . . . . . . Recycling Units 11 | . . . 3 . . . 1 7 . . Scanalyzers 16 | . . . 13 . . . 3 . . . Garrison Access 3 | . . . . . . . . 3 . . Terminal Hacks 63 | . 2 1 8 . 50 . 1 1 . . Record 49 | . . . . . 49 . . . . . Robot Analysis 4 | . 2 . 2 . . . . . . . Open Door 1 | . . 1 . . . . . . . . Terminal Index 1 | . . . . . . . . 1 . . Alert Level 1 | . . . 1 . . . . . . . Unreport Threat 2 | . . . 1 . . . 1 . . . Recall Investigation 1 | . . . 1 . . . . . . . Zone Layout 3 | . . . 3 . . . . . . . Derelict Proto ID Bank 1 | . . . . . 1 . . . . . Fabricator Hacks . | . . . . . . . . . . . Repair Station Hacks 6 | . . . 6 . . . . . . . Scan Component 3 | . . . 3 . . . . . . . Repair 3 | . . . 3 . . . . . . . Recycling Unit Hacks 3 | . . . . . . . 1 2 . . Report Inventory 1 | . . . . . . . . 1 . . Retrieve Components 2 | . . . . . . . 1 1 . . Scanalyzer 14 | . . . 12 . . . 2 . . . Insert Component 7 | . . . 6 . . . 1 . . . Analyze 7 | . . . 6 . . . 1 . . . Garrison Access Hacks 1 | . . . . . . . . 1 . . Unlock Access 1 | . . . . . . . . 1 . . Unauthorized Hacks 28 | . 5 . 12 . . . 6 5 . . Terminals 19 | . 5 . 9 . . . 5 . . . Track 7 | . 2 . 4 . . . 1 . . . Assimilate 2 | . . . 1 . . . 1 . . . Botnet 8 | . 3 . 3 . . . 2 . . . Operators 2 | . . . 1 . . . 1 . . . Fabricators . | . . . . . . . . . . . Repair Stations . | . . . . . . . . . . . Recycling Units 6 | . . . 2 . . . . 4 . . Reject 3 | . . . 1 . . . . 2 . . Recyclers 2 | . . . 1 . . . . 1 . . Mask 1 | . . . . . . . . 1 . . Scanalyzers 2 | . . . 1 . . . 1 . . . Extract 2 | . . . 1 . . . 1 . . . Garrison Access 1 | . . . . . . . . 1 . . Reprogram 1 | . . . . . . . . 1 . . Data Cores Recovered . | . . . . . . . . . . . Used . | . . . . . . . . . . . Hacking Detections 19 | . 5 . 7 . . . 4 3 . . Full Trace Events 12 | . 3 . 4 . . . 3 2 . . Feedback Events 1 | . . . . . . . 1 . . . Hackware Fried 1 | . . . . . . . 1 . . . Feedback Blocked . | . . . . . . . . . . . Robot Schematics Acquired . | . . . . . . . . . . . Robots Built . | . . . . . . . . . . . Authchips . | . . . . . . . . . . . Time . | . . . . . . . . . . . Total Robot Build Rating . | . . . . . . . . . . . Part Schematics Acquired 10 | . . . 8 . . . 2 . . . Parts Built . | . . . . . . . . . . . Authchips . | . . . . . . . . . . . Time . | . . . . . . . . . . . Total Part Build Rating . | . . . . . . . . . . . Parts Repaired 3 | . . . 3 . . . . . . . Time 102 | . . . 102 . . . . . . . Parts Recycled . | . . . . . . . . . . . Recycled Matter . | . . . . . . . . . . . Retrieved Matter . | . . . . . . . . . . . Retrieved Components 4 | . . . . . . . 4 . . . Parts Scanalyzed 7 | . . . 6 . . . 1 . . . Part Schematics Acquired 7 | . . . 6 . . . 1 . . . Parts Damaged 1 | . . . 1 . . . . . . . Bothacking | -11 -10 -10 -9 -9 -9 -8 -8 -7 -7 -6 ------------ Run | Yrd Mat Min Mat Min Exi Min Mat Fac Gar Fac Used RIF Installer 1 | . . . . . . . . . 1 . Robots Hacked 4 | . . . . . . . . . 2 2 Non-combat 2 | . . . . . . . . . . 2 Combat 2 | . . . . . . . . . 2 . Robot Hacks Applied 8 | . . . . . . . . . 2 6 parse_system 1 | . . . . . . . . . . 1 find_chute 1 | . . . . . . . . . . 1 find_recycling 1 | . . . . . . . . . . 1 ignore_parts 1 | . . . . . . . . . . 1 amplify_resonance 2 | . . . . . . . . . . 2 formatsys_high 2 | . . . . . . . . . 2 . Relay Couplers Released 16 | . . . . . . . . . 16 . Machine Destruction 16 | . . . . . . . . . 16 . Attached 5 | . . . . . . . . . 2 3 Fabnet Peak Effective % . | . . . . . . . . . . . Robots Rewired 8 | . . . . . . . . 3 5 . Allies Hacked . | . . . . . . . . . . . Hacks Repelled . | . . . . . . . . . . . Allies | -11 -10 -10 -9 -9 -9 -8 -8 -7 -7 -6 -------- Run | Yrd Mat Min Mat Min Exi Min Mat Fac Gar Fac Total Allies 14 | . . 2 . . . . . 5 7 . Largest Group 4 | . . 2 2 . . . . 4 4 . Highest-Rated Group 96 | . . 42 42 . . . . 96 84 . Highest-Rated Ally 32 | . . 31 31 . . . . 32 32 . Total Orders 5 | . . . 3 . . . . 1 1 . EXPLORE 5 | . . . 3 . . . . 1 1 . Ally Attacks 100 | . . 2 24 . . . . 24 50 . Total Damage 2481 | . . 43 215 . . . . 830 1393 . Kills 30 | . . 1 4 . . . . 8 17 . Allies Corrupted . | . . . . . . . . . . . Allies Melted 1 | . . . . . . . . . 1 . Intel | -11 -10 -10 -9 -9 -9 -8 -8 -7 -7 -6 ------- Run | Yrd Mat Min Mat Min Exi Min Mat Fac Gar Fac Robot Analysis Total 4 | . 2 . 2 . . . . . . . Derelict Logs Recovered 2 | . . 2 . . . . . . . . Drone Launches 9 | . . . 4 . . . . 3 2 . Drone Recoveries 5 | . . . 4 . . . . . 1 . Exploration | -11 -10 -10 -9 -9 -9 -8 -8 -7 -7 -6 ------------- Run | Yrd Mat Min Mat Min Exi Min Mat Fac Gar Fac Turns Passed 9334 | 66 1077 2178 1564 331 1010 533 443 432 1399 301 Spaces Moved 5016 | 44 543 870 568 140 521 267 583 555 779 146 Core 26 | 14 . . . . . . . . . 12 Treads 1465 | . 494 870 101 . . . . . . . Legs 2217 | . . . 467 140 521 267 . . 688 134 Wheels 79 | 30 49 . . . . . . . . . Hover . | . . . . . . . . . . . Flight 1229 | . . . . . . . 583 555 91 . Fastest Speed 50 | 50 90 240 190 190 190 190 50 50 50 50 Average Speed 154 | 77 174 240 199 190 190 190 50 50 126 162 Slowest Speed 1050 | 90 240 240 260 190 190 190 50 50 260 1050 Overloaded Moves . | . . . . . . . . . . . Propulsion Burnouts . | . . . . . . . . . . . Robots Hopped 5 | . . . . . . . 1 3 1 . Cave-ins Triggered . | . . . . . . . . . . . Exploration Rate (%) 50 | 5 77 98 61 32 91 66 44 14 53 9 Regions Visited 10 Branch Regions 4 Pre-discovered Areas 3 | . . 2 . . 1 . . . . . Known Exits Taken 2 | . . 1 . . . . . 1 . . Unknown Exits Taken 7 | 1 1 . 1 1 1 1 1 . . . Scrap Searched 4 | . . 2 . 1 . 1 . . . . Spaces Dug 14 | . . . . . . . 11 2 1 . Terrain Destroyed 290 | . 59 72 1 27 . . 66 9 43 13 Melee 3 | . . . . . . . . 2 1 . Projectile 1 | . . . 1 . . . . . . . AOE 286 | . 59 72 . 27 . . 66 7 42 13 Terrain Rammed . | . . . . . . . . . . . Walls Destroyed . | . . . . . . . . . . . Machines Disabled . | . . . . . . . . . . . Actions | -11 -10 -10 -9 -9 -9 -8 -8 -7 -7 -6 --------- Run | Yrd Mat Min Mat Min Exi Min Mat Fac Gar Fac Total 6015 | 68 632 922 837 171 544 281 671 639 1057 193 Wait 287 | . 15 10 109 3 14 5 34 10 80 7 Move 4997 | 43 542 869 567 139 520 266 580 549 776 146 Hop 5 | . . . . . . . 1 3 1 . Pick Up 143 | 13 23 6 30 4 3 1 7 11 40 5 Fast Attach . | . . . . . . . . . . . Attach 50 | 7 1 4 6 4 . . 6 3 12 7 Detach . | . . . . . . . . . . . Swap 80 | 1 7 5 17 3 1 2 6 12 24 2 Drop 86 | . 9 2 23 1 5 1 6 8 24 7 Fire 295 | 4 35 24 85 17 . 6 31 41 36 16 Melee 56 | . . . . . . . . 2 52 2 Ram 1 | . . . . . . . . . . 1 Kick . | . . . . . . . . . . . Crush . | . . . . . . . . . . . Escape Stasis 12 | . . . . . . . . . 12 . Rewire 1 | . . . . . 1 . . . . . Trap 2 | . . 2 . . . . . . . . Miscellaneous . | . . . . . . . . . . . Route ------- -11/Scrapyard -10/Materials (discovered 5 exits: *Mat x3 / *Min x2) -10/Mines (discovered 2 exits: *Mat x2) -9/Materials (discovered 3 exits: *Mat / [*Min] / [*Sto]) -9/Mines -9/Exiles -8/Mines -8/Materials -7/Factory (discovered 2 exits: *Fac / Gar) -7/Garrison -6/Factory History --------- Turn | Location | Event 2 | -11/Scrapyard | Met Revision 17 44 | -11/Scrapyard | Discovered new exit (range 15) 67 | -11/Scrapyard | Entered Materials 105 | -10/Materials | Discovered new exit (range 16) 315 | -10/Materials | Build established: Mutant 435 | -10/Materials | Discovered new exit (range 4) 510 | -10/Materials | Discovered new exit (range 15) 585 | -10/Materials | Central database locked down 658 | -10/Materials | Discovered new exit (range 6) 1075 | -10/Materials | Discovered new exit (range 6) 1144 | -10/Materials | Entered Mines 1177 | -10/Mines | Assembled infested the area 1213 | -10/Mines | Destroyed 13 combat bots 1224 | -10/Mines | Core integrity fell below 50% 1256 | -10/Mines | Lost 3 parts (1p1n1w) 1439 | -10/Mines | Found a hidden stash of uninstalled traps 1490 | -10/Mines | Found the Drone Emporium 1501 | -10/Mines | Found Prototype Device 1519 | -10/Mines | Identified Sensor Drone Bay 1689 | -10/Mines | Learned location of Zion (-6) 1800 | -10/Mines | Learned location of Storage (-9) 1822 | -10/Mines | Met a Derelict testing a Signal Generator 1826 | -10/Mines | Discovered new exit (range 5) 1836 | -10/Mines | Found Signal Generator 2360 | -10/Mines | Discovered new exit (range 12) 2386 | -10/Mines | Identified exit to Materials 3322 | -10/Mines | Entered Materials 3322 | -9/Materials | Accompanied by 2 allies 3322 | -9/Materials | Evolved 2 slots: Propulsion x1, Utility x1 3327 | -9/Materials | Led the pair of lost Derelicts to an unsafe place 3781 | -9/Materials | Discovered new exit (range 19) 4025 | -9/Materials | Build established: Hacker-Mutant 4329 | -9/Materials | Repaired Carbon-fiber Leg 4368 | -9/Materials | Repaired Carbon-fiber Leg 4395 | -9/Materials | Repaired Ion Engine 4862 | -9/Materials | Discovered new exit (range 8) 4862 | -9/Materials | Discovered new exit (range 15) 4871 | -9/Materials | Core integrity fell below 50% 4886 | -9/Materials | Entered Mines 5109 | -9/Mines | Lost 4 parts (1p2n1w) 5203 | -9/Mines | Discovered new exit (range 7) 5217 | -9/Mines | Entered Exiles 5271 | -9/Exiles | Met 8R-AWN 5301 | -9/Exiles | Met EX-HEX 5403 | -9/Exiles | Met EX-DEC 5451 | -9/Exiles | Visited The Gauntlet 5751 | -9/Exiles | Met EX-BIN 5950 | -9/Exiles | Aligned with FarCom system 5952 | -9/Exiles | Given EX-Vault access code 5996 | -9/Exiles | Opened EX-Vault 6010 | -9/Exiles | Found Trap Reconfigurator 6019 | -9/Exiles | Found Flying Fortress v7 6026 | -9/Exiles | Found Skeleton Box 6067 | -9/Exiles | Warned to stay clear of 0b10 Research branches 6080 | -9/Exiles | Exiles lab attacked by MAIN.C 6189 | -9/Exiles | Discovered new exit (range 14) 6227 | -9/Exiles | Stole three prototypes: Flying Fortress v7, Skeleton Box, Trap Reconfigurator 6227 | -9/Exiles | Entered Mines 6742 | -8/Mines | Discovered new exit (range 5) 6760 | -8/Mines | Entered Materials 6760 | -8/Materials | Evolved 2 slots: Propulsion x1, Utility x1 7054 | -8/Materials | Hacking Suite fried by hacking feedback 7158 | -8/Materials | Discovered new exit (range 16) 7203 | -8/Materials | Entered Factory 7203 | -7/Factory | Evolved 2 slots: Utility x2 7205 | -7/Factory | FarCom data flow suspended 7486 | -7/Factory | Discovered new exit (range 8) 7588 | -7/Factory | Garrison activated, responded to threat 7603 | -7/Factory | Identified exit to Garrison 7635 | -7/Factory | Entered Garrison 7651 | -7/Garrison | Triggered checkpoint 7666 | -7/Garrison | Lost 4 allies 7673 | -7/Garrison | Triggered checkpoint 7741 | -7/Garrison | Triggered checkpoint 8004 | -7/Garrison | Installed Relay Interface Framework 8015 | -7/Garrison | Triggered checkpoint 8022 | -7/Garrison | Triggered checkpoint 8060 | -7/Garrison | Lost 4 allies 8175 | -7/Garrison | Garrison Relay disabled 8293 | -7/Garrison | Build established: Scavenger-Mutant 8370 | -7/Garrison | Garrison Relay disabled 8639 | -7/Garrison | Triggered checkpoint 8651 | -7/Garrison | Triggered checkpoint 8711 | -7/Garrison | Garrison Relay disabled 8823 | -7/Garrison | Triggered checkpoint 8874 | -7/Garrison | Discovered new exit (range 8) 8917 | -7/Garrison | Triggered checkpoint 8955 | -7/Garrison | Garrison Relay disabled 9021 | -7/Garrison | Build established: Bothacker-Mutant 9032 | -7/Garrison | Identified exit to Factory 9034 | -7/Garrison | Entered Factory 9034 | -6/Factory | Evolved 2 slots: Utility x1, Weapon x1 9335 | -6/Factory | Self-destructed Last Messages --------------- Redist. System. 09321_ P-60 Hacker resets U-05 Engineer, system corruption cleaned. 09322_ U-05 Engineer lays Concrete. 09322_ Critical hit (Burn: +37). 09323_ Relay Coupler [Brawler] destroyed. 09323_ Critical hit (Burn: +37). 09324_ U-05 Engineer destroyed. 09324_ U-05 Engineer builds a Wall. 09324_ R-10 Processor collects Phase Cannon. 09325_ K-01 Serf collects debris. 09325_ Dropped Hcp. Storage Unit. 09326_ Acquired 35 matter. 09328_ U-05 Engineer builds a Door. 09328_ K-01 Serf collects debris. 09330_ P-60 Hacker repels hacking attempt. 09331_ Remote Datajack destroyed. 09331_ K-01 Serf collects debris. 09333_ Critical hit (Burn: +37). 09334_ Slammed into G-67 Veteran. Map ----- +----------------------------------------------------+ | ?????????????????????????????????????????????????? | | ?????????????????????????????????????????????????? | | ?????????????????????????????????????????????????? | | ?????????????????????????????????????????????????? | | ?????????????????????????????????????????????????? | | ??????????????????????????? ????????????????????? | | ??????????????????????????? ???????????????????? | | ??????????????????????????" ???????????????????? | | ??????????????????????" ??" ???????????????????? | | ????????????????????? ?? ! ???????????????????? | | ?????????????????""??"" """ #???????????????????? | | ??????????????" """ """ """ #???????????????????? | | ?????????????"" """ """ """ #???????????????????? | | ????????????? #???????????????????? | | ?????????????? #???????????????????? | | ??????????????? #???????????????????? | | ????????????????# #???????????????????? | | ????????????????# p ############## ???? | | ????????????????# # # ]]?? | | ????????????????# # """ """ # ] | | ????????????????# t + """ """ # | | ????????????????#k """ """ # | | ????????????????# # # | | ????????????????# %k ]] """ ]# | | ?????????####+### g # !=!!!""" # T | | ???????? gg@ # %*!]!""" # | | ???????? g R= + !*!/! # | | ???????? p *%= !! " # | | ??????? !| " # / | | ??????? """ # | | ?????? k # # ######## """"" | | ?????? """"" | | ?????? " | | ?????? " | | ?????? = % | | ??????? k k %% | | ??????? ####################### "######### " "# | | ?????????????????????????????? ??????# | | ????????????????????????????? ????# | | ???????????????????????????# ??# | | ???????????????????????????# #?# | | ???????????????????????????# #?# | | ???????????????????????????# #?# | | ???????????????????????????# #?# | | ???????????????????????????# #?# | | ???????????????????????????# ! #?# | | ???????????????????????????# #?######## | | ???????????????????????????# #????????? | | ???????????????????????????# #????????? | | ???????????????????????????##############????????? | +----------------------------------------------------+ Best States ------------- Heat Dissipation 64 Energy Generation 16 Energy Capacity 290 Matter Stores 403 Matter Capacity 500 Sight Range 18 Terrain Scan Density 10 Additional Mass Support 9 Resistance: KI 20 Resistance: TH 20 Resistance: EX 20 Resistance: EM 20 Resistance: I 20 Resistance: S 20 Resistance: P 20 Evasion (%) 68 Recoil Reduction 2 Offensive Hacking 30 Relay Coupler Types 3 Relay Coupler Value 67 Item Schematics ----------------- Hacking Suite | -9/Materials | Scanalyzed Imp. Heat Sink | -9/Materials | Scanalyzed Field Laser | -9/Materials | Scanalyzed Carbon-fiber Leg | -9/Materials | Scanalyzed Signal Interpreter | -9/Materials | Scanalyzed Wheel | -9/Materials | Scanalyzed ECM Suite | -9/Materials | Extracted Mining Laser | -9/Materials | Extracted Imp. VTOL Module | -8/Materials | Scanalyzed Hover Unit | -8/Materials | Extracted Robot Schematics ------------------ None Fabricated ------------ Nothing Alien Tech Used ----------------- None Achievements -------------- Exterminator Challenges ------------ None Game ------ Seed CorruptionShadeCanceller Manual? 0 Play Time 01:12:40 Cumulative 393.9 hours Start 2024.07.04 @ 18:24:14 End 2024.07.04 @ 19:35:48 Sessions 1 Manual Loads 0 Difficulty Adventurer Special Mode None Game No. 71 Rogue 0 Adventurer 71 Explorer 0 Win Type - Total 4 Types 2/0/0/2/0/0/0/0/0 Lore% 56 Gallery% 78 Achievement% 66 Wizard Run 0 Options --------- Layout 2 ASCII 0 Keyboard 0 Movement Mouse Keybinds 0 Fullscreen 1 Font 24/Smallcaps Map View 50x49 Zoom Use 1% Tactical HUD 1 Map Filters NONE Filters NONE Steam 1 RUN: ca74da61-614a-478f-8be3-d27adc8bfb22